fUSD/lending_fUSD_20260221
["ID","MTS","AMOUNT","RATE_DAILY","PERIOD"]
[406279659,1771684860448,-693.3919763,0.00054795,30]
[406279660,1771684860486,-500.0,0.00054795,30]
[406279661,1771684860530,-719.04747942,0.00054795,30]
[406279662,1771684860570,-745.65223616,0.00054795,30]
[406279663,1771684860612,-500.0,0.00054795,30]
[406279664,1771684860652,-773.2413689,0.00054795,30]
[406279665,1771684860691,-500.0,0.00054795,30]
[406279666,1771684860730,-801.85129955,0.00054795,30]
[406279667,1771684860765,-500.0,0.00054795,30]
[406279668,1771684860801,-831.51979763,0.00054795,30]
[406279669,1771684860836,-500.0,0.00054795,30]
[406279670,1771684860872,-862.28603014,0.00054795,30]
[406279671,1771684860907,-500.0,0.00054795,30]
[406279672,1771684860947,-894.19061326,0.00054795,30]
[406279673,1771684860984,-500.0,0.00054795,30]
[406279674,1771684861020,-927.27566595,0.00054795,30]
[406279675,1771684861055,-500.0,0.00054795,30]
[406279676,1771684861093,-961.58486559,0.00054795,30]
[406279677,1771684861130,-500.0,0.00054795,30]
[406279678,1771684861170,-997.16350561,0.00054795,30]
[406279679,1771684861207,-500.0,0.00054795,30]
[406279680,1771684861244,-500.0,0.00054795,30]
[406279681,1771684861282,-500.0,0.00054795,30]
[406279682,1771684861318,-500.0,0.00054795,30]
[406279683,1771684861354,-10000.0,0.00054795,30]
[406279684,1771684861388,-10000.0,0.00054795,30]
[406279685,1771684861499,150.0,0.00053699,120]
[406279686,1771684861540,197.0040656,0.000545,30]
[406279687,1771684861581,197.0040656,0.00054645,30]
[406279688,1771684861621,197.0040656,0.00054646,30]
[406279689,1771684861670,342999.99999996,0.0005349,30]
[406279690,1771684937555,500.0,0.0001,2]
[406279691,1771684938530,501.36407877,0.0001,2]
[406279692,1771684940256,500.0,0.0001,2]
[406279693,1771684940732,500.0,0.0001,2]
[406279694,1771684941072,500.0,0.0001,2]
[406279695,1771684941220,500.0,0.0001,2]
[406279696,1771684941566,500.0,0.0001,2]
[406279697,1771684941915,500.0,0.0001,2]
[406279698,1771684941982,500.0,0.0001,2]
[406279699,1771684942082,498.64592123,0.0001,2]
[406279700,1771684942106,1.35407877,0.0001,2]
[406279701,1771684942594,500.0,0.0001,2]
[406279702,1771684942627,500.0,0.0001,2]
[406279703,1771684943525,500.0,0.0001,2]
[406279704,1771684943628,500.0,0.0001,2]
[406279705,1771684944041,500.0,0.0001,2]
[406279706,1771684944159,500.0,0.0001,2]
[406279707,1771684944514,500.0,0.0001,2]
[406279708,1771684944620,799.99,0.0001,2]
[406279709,1771684945027,500.0,0.0001,2]
[406279710,1771684945962,198.66592123,0.0001,2]
[406279711,1771684945985,301.33407877,0.0001,2]
[406279712,1771684946523,500.0,0.0001,2]
[406279713,1771684946979,500.0,0.0001,2]
[406279714,1771684947462,800.0,0.0001,2]
[406279715,1771684947653,500.0,0.0001,2]
[406279716,1771684948533,500.0,0.0001,2]
[406279717,1771684949014,500.0,0.0001,2]
[406279718,1771684949529,500.0,0.0001,2]
[406279719,1771684949975,500.0,0.0001,2]
[406279720,1771684950593,398.67592123,0.0001,2]
[406279721,1771684950613,101.32407877,0.0001,2]
[406279722,1771684950863,500.0,0.0001,2]
[406279723,1771684951389,500.0,0.0001,2]
[406279724,1771684951848,500.0,0.0001,2]
[406279725,1771684952342,500.0,0.0001,2]
[406279726,1771684952820,999.99,0.0001,2]
[406279727,1771684952865,500.0,0.0001,2]
[406279728,1771684952915,500.0,0.0001,2]
[406279729,1771684953254,500.0,0.0001,2]
[406279730,1771684954246,500.0,0.0001,2]
[406279731,1771684954454,500.0,0.0001,2]
[406279732,1771684954723,500.0,0.0001,2]
[406279733,1771684954909,1000.0,0.0001,2]
[406279734,1771684954978,500.0,0.0001,2]
[406279735,1771684955222,500.0,0.0001,2]
[406279736,1771684955408,1000.0,0.0001,2]
[406279737,1771684955494,500.0,0.0001,2]
[406279738,1771684955890,1000.0,0.0001,2]
[406279739,1771684955989,500.0,0.0001,2]
[406279740,1771684956313,0.01,0.0001,2]
[406279741,1771684956336,499.99,0.0001,2]
[406279742,1771684956370,1000.0,0.0001,2]
[406279743,1771684956783,500.0,0.0001,2]
[406279744,1771684956975,1000.0,0.0001,2]
[406279745,1771684957447,1000.0,0.0001,2]
[406279746,1771684957960,1000.0,0.0001,2]
[406279747,1771684958203,500.0,0.0001,2]
[406279748,1771684958527,1000.0,0.0001,2]
[406279749,1771684959024,1000.0,0.0001,2]
[406279750,1771684959515,1000.0,0.0001,2]
[406279751,1771684959731,500.0,0.0001,2]
[406279752,1771684959986,0.01,0.0001,2]
[406279753,1771684960011,999.99,0.0001,2]
[406279754,1771684960213,500.0,0.0001,2]
[406279755,1771684960471,1000.0,0.0001,2]
[406279756,1771684960684,500.0,0.0001,2]
[406279757,1771684960988,1400.01,0.0001,2]
[406279758,1771684961250,500.0,0.0001,2]
[406279759,1771685126897,972.0,0.00015,30]
[406279760,1771685144663,166.66,0.00012359,2]
[406279761,1771685144875,166.66,0.00012619,2]
[406279762,1771685198467,-166.66,0.0001288,2]
[406279763,1771685198494,-454.438108,0.00013137,2]
[406279764,1771685198519,-166.66,0.0001314,2]
[406279765,1771685198548,-300.0,0.00013252,2]
[406279766,1771685198572,-22804.46,0.00013253,2]
[406279767,1771685198596,-200.0,0.00013272,2]
[406279768,1771685198624,-250.0,0.00013295,2]
[406279769,1771685198649,-166.66,0.000134,2]
[406279770,1771685198674,-2264.296,0.00013453,2]
[406279771,1771685198697,-192.947,0.00013453,2]
[406279772,1771685198729,-275.20053403,0.00013494,2]
[406279773,1771685198754,-1200.0,0.00013527,2]
[406279774,1771685198778,-150.0,0.00013527,2]
[406279775,1771685198804,-1026.06818482,0.00013528,2]
[406279776,1771685198829,-35400.85669071,0.00013528,2]
[406279777,1771685198853,-232.32170145,0.00013528,2]
[406279778,1771685198877,-169.88351399,0.00013528,2]
[406279779,1771685198901,-218.17246062,0.00013528,2]
[406279780,1771685198925,-151.0,0.00013625,2]
[406279781,1771685198951,-227.30102046,0.00013627,2]
[406279782,1771685198986,-500.0,0.00013627,2]
[406279783,1771685199017,-500.0,0.00013627,2]
[406279784,1771685199046,-500.0,0.00013627,2]
[406279785,1771685199074,-324.80050544,0.00013627,2]
[406279786,1771685199099,-596.74500653,0.00013627,2]
[406279787,1771685199124,-500.0,0.00013627,2]
[406279788,1771685199148,-150.35941026,0.00013627,2]
[406279789,1771685199175,-174.91022932,0.00013627,2]
[406279790,1771685199203,-230.05626823,0.00013627,2]
[406279791,1771685199228,-1045.0,0.00013627,2]
[406279792,1771685199255,-6461.20336614,0.00013628,2]
[406279793,1771685205151,1626.09,0.00010989,2]
[406279794,1771685205346,1626.09,0.00011133,2]
[406279795,1771685205550,1626.09,0.00011278,2]
[406279796,1771685205980,121.74,0.00011422,2]
[406279797,1771685244614,500.0,0.0001,2]
[406279798,1771685244957,500.0,0.0001,2]
[406279799,1771685245123,500.0,0.0001,2]
[406279800,1771685245447,500.0,0.0001,2]
[406279801,1771685245946,500.0,0.0001,2]
[406279802,1771685246421,500.0,0.0001,2]
[406279803,1771685246919,500.0,0.0001,2]
[406279804,1771685247384,500.0,0.0001,2]
[406279805,1771685247860,500.0,0.0001,2]
[406279806,1771685248379,500.01,0.0001,2]
[406279807,1771685248406,29.709516,0.0001,2]
[406279808,1771685288061,-1504.35,0.00011422,2]
[406279809,1771685288093,-250.0,0.00011495,2]
[406279810,1771685365861,-1626.09,0.00011567,2]
[406279811,1771685365888,-1626.09,0.00011711,2]
[406279812,1771685365916,-1626.09,0.00011856,2]
[406279813,1771685365941,-1626.09,0.00012001,2]
[406279814,1771685365967,-1626.09,0.00012145,2]
[406279815,1771685365994,-1626.09,0.0001229,2]
[406279816,1771685366021,-300.0,0.00012433,2]
[406279817,1771685366050,-1626.09,0.00012434,2]
[406279818,1771685366075,-250.0,0.00012564,2]
[406279819,1771685366100,-250.0,0.00012564,2]
[406279820,1771685366125,-1626.09,0.00012579,2]
[406279821,1771685366149,-152.82,0.00012591,2]
[406279822,1771685366174,-1626.09,0.00012723,2]
[406279823,1771685366199,-300.0,0.00012723,2]
[406279824,1771685366224,-112.37,0.00012723,2]
[406279829,1771685431262,-137.63,0.00012723,2]
[406279830,1771685431271,-2511.42,0.00012744,2]
[406279831,1771685431281,-1500.0,0.00012756,2]
[406279832,1771685431290,-250.0,0.00012759,2]
[406279833,1771685431300,-171.74790705,0.00012794,2]
[406279834,1771685431311,-328.25209295,0.00012794,2]
[406279835,1771685431320,-37.24790705,0.00012819,2]
[406279836,1771685431332,-152.03186016,0.00012819,2]
[406279837,1771685431341,-1626.09,0.00012868,2]
[406279838,1771685431350,-1626.09,0.00013013,2]
[406279839,1771685431359,-1626.09,0.00013157,2]
[406279840,1771685431369,-1626.09,0.00013302,2]
[406279841,1771685431378,-1200.0,0.00013445,2]
[406279842,1771685431387,-1626.09,0.00013446,2]
[406279843,1771685431396,-300.0,0.00013527,2]
[406279844,1771685431406,-2500.0,0.00013528,2]
[406279845,1771685431415,-1626.09,0.00013591,2]
[406279846,1771685431424,-1800.0,0.000136,4]
[406279847,1771685431434,-500.0,0.0001362,2]
[406279848,1771685431443,-500.0,0.0001362,2]
[406279849,1771685431452,-500.0,0.0001362,2]
[406279850,1771685431461,-151.0,0.0001362,2]
[406279851,1771685431470,-500.0,0.0001362,2]
[406279852,1771685431480,-151.0,0.0001362,2]
[406279853,1771685431489,-500.0,0.0001362,2]
[406279854,1771685431499,-151.0,0.0001362,2]
[406279855,1771685431508,-500.0,0.0001362,2]
[406279856,1771685431517,-150.0,0.00013627,2]
[406279857,1771685431527,-2097.4317,0.00013628,2]
[406279858,1771685431537,-70994.3266,0.00013628,2]
[406279860,1771685431546,-3503.8584,0.00013628,2]
[406279861,1771685431556,-166.66,0.0001366,2]
[406279862,1771685431575,-500.0,0.00013698,2]
[406279863,1771685431585,-500.0,0.00013698,2]
[406279864,1771685431594,-500.0,0.00013698,2]
[406279865,1771685431603,-500.0,0.00013698,2]
[406279866,1771685431612,-500.0,0.00013698,2]
[406279867,1771685431621,-500.0,0.00013698,2]
[406279868,1771685431631,-500.0,0.00013698,2]
[406279869,1771685431640,-500.0,0.00013698,2]
[406279870,1771685431649,-540.78795508,0.00013698,2]
[406279871,1771685431659,-2601.0,0.00013699,2]
[406279872,1771685431668,-184.53,0.00013699,2]
[406279873,1771685431679,-3700.0,0.000137,5]
[406279874,1771685431690,-500.0,0.00013727,2]
[406279875,1771685431702,-500.0,0.00013727,2]
[406279876,1771685431712,-500.0,0.00013727,2]
[406279877,1771685431722,-423.9214379,0.00013727,2]
[406279878,1771685431732,-500.0,0.00013727,2]
[406279879,1771685431742,-500.0,0.00013727,2]
[406279880,1771685431752,-500.0,0.00013727,2]
[406279881,1771685431762,-500.0,0.00013727,2]
[406279882,1771685431774,-500.0,0.00013727,2]
[406279883,1771685431783,-452.51165324,0.00013727,2]
[406279884,1771685431793,-10000.0,0.00013728,2]
[406279885,1771685431802,-1626.09,0.00013735,2]
[406279886,1771685431811,-5500.0,0.000138,5]
[406279887,1771685431821,-1018.43216429,0.00013827,5]
[406279888,1771685431830,-1018.43216429,0.00013827,5]
[406279889,1771685431840,-1018.43216429,0.00013827,5]
[406279890,1771685431849,-1018.43216426,0.00013827,5]
[406279891,1771685431859,-1018.43216429,0.00013827,5]
[406279892,1771685431868,-1018.43216429,0.00013827,5]
[406279893,1771685431878,-1018.43216429,0.00013827,5]
[406279894,1771685431887,-1018.43216429,0.00013827,5]
[406279895,1771685431896,-500.0,0.00013827,5]
[406279896,1771685431906,-1000.0,0.00013828,2]
[406279897,1771685431915,-148.88751332,0.000139,5]
[406279898,1771685431933,-3918.26871085,0.000139,5]
[406279899,1771685431943,-491.0360497,0.000139,5]
[406279900,1771685431958,-342.48315084,0.000139,5]
[406279901,1771685431973,-2499.32457529,0.000139,5]
[406279902,1771685431982,-13.31884571,0.000139,2]
[406279903,1771685431993,-2000.00000001,0.000139,2]
[406279904,1771685432004,-1400.0,0.000139,2]
[406279905,1771685432015,-579.03454754,0.000139,2]
[406279906,1771685432027,-1165.26302158,0.000139,2]
[406279907,1771685432039,-1518.79195812,0.000139,2]
[406279908,1771685432052,-950.69681676,0.000139,2]
[406279915,1771685437702,-151.0,0.0001362,2]
[406279916,1771685437712,-151.0,0.0001362,2]
[406279917,1771685437721,-151.0,0.0001362,2]
[406279919,1771685437731,-151.0,0.0001362,2]
[406279921,1771685437742,-151.0,0.0001362,2]
[406279923,1771685437754,-151.0,0.0001362,2]
[406279924,1771685437764,-7967.72058096,0.000139,2]
[406279936,1771685438252,-9605.63709047,0.000139,2]
[406279937,1771685438264,-3033.40080661,0.000139,2]
[406279938,1771685438276,-690.45,0.000139,2]
[406279939,1771685438288,-688.42800765,0.000139,2]
[406279940,1771685438298,-500.0,0.00013927,2]
[406279941,1771685438308,-500.0,0.00013927,2]
[406279942,1771685438318,-4451.1035,0.00013973,2]
[406279943,1771685438328,-250.0,0.00013996,2]
[406279944,1771685438338,-265.89,0.00014,2]
[406279945,1771685438348,-500.0,0.00014,2]
[406279946,1771685438359,-500.0,0.00014,2]
[406279947,1771685438369,-500.0,0.00014,2]
[406279948,1771685438379,-500.0,0.00014,2]
[406279949,1771685438389,-501.52973822,0.00014,2]
[406279950,1771685438399,-500.0,0.00014,2]
[406279951,1771685438409,-500.0,0.00014,2]
[406279952,1771685438418,-500.0,0.00014,2]
[406279953,1771685438428,-500.0,0.00014,2]
[406279954,1771685438439,-500.0,0.00014,2]
[406279955,1771685438449,-500.0,0.00014,2]
[406279956,1771685438459,-500.0,0.00014,2]
[406279957,1771685438469,-500.0,0.00014,2]
[406279958,1771685438479,-500.0,0.00014,2]
[406279959,1771685438489,-500.0,0.00014,2]
[406279960,1771685438505,-500.0,0.00014,2]
[406279961,1771685438515,-500.0,0.00014,2]
[406279962,1771685438524,-500.0,0.00014,2]
[406279963,1771685438535,-500.0,0.00014,2]
[406279964,1771685438544,-500.0,0.00014,2]
[406279965,1771685438553,-500.0,0.00014,2]
[406279966,1771685438563,-500.0,0.00014,2]
[406279967,1771685438573,-500.0,0.00014,2]
[406279968,1771685438582,-500.0,0.00014,2]
[406279969,1771685438592,-500.0,0.00014,2]
[406279970,1771685438601,-500.0,0.00014,2]
[406279971,1771685438611,-810.0,0.00014,2]
[406279972,1771685438624,-599.99,0.00014,2]
[406279973,1771685438634,-483.92775601,0.00014,2]
[406279974,1771685438643,-500.0,0.00014,2]
[406279975,1771685438654,-746.81779802,0.00014,2]
[406279976,1771685438664,-500.0,0.00014,2]
[406279977,1771685438674,-500.0,0.00014,2]
[406279978,1771685438683,-514.27853085,0.00014,2]
[406279979,1771685438696,-500.0,0.00014,2]
[406279980,1771685438706,-389.72502397,0.00014,2]
[406279981,1771685438715,-500.0,0.00014,2]
[406279982,1771685438724,-500.0,0.00014,2]
[406279983,1771685438735,-322.49747918,0.00014,2]
[406279984,1771685438744,-500.0,0.00014,2]
[406279985,1771685438754,-392.76826941,0.00014,2]
[406279986,1771685438765,-500.0,0.00014,2]
[406279987,1771685438774,-1000.0,0.00014,2]
[406279988,1771685438784,-500.0,0.00014,2]
[406279989,1771685438793,-557.57142107,0.00014,2]
[406279990,1771685438803,-500.0,0.00014,2]
[406279991,1771685438813,-173.48678662,0.00014,2]
[406279992,1771685438823,-500.0,0.00014,2]
[406279993,1771685438833,-1000.0,0.00014,2]
[406279994,1771685438843,-500.0,0.00014,2]
[406279995,1771685438852,-1000.0,0.00014,2]
[406279996,1771685438862,-285.78386922,0.00014,2]
[406279997,1771685438872,-500.0,0.00014,2]
[406279998,1771685438882,-1000.0,0.00014,2]
[406279999,1771685438892,-500.0,0.00014,2]
[406280000,1771685438902,-1000.0,0.00014,2]
[406280001,1771685438912,-500.0,0.00014,2]
[406280002,1771685438922,-500.0,0.00014,2]
[406280003,1771685438931,-1000.0,0.00014,2]
[406280004,1771685438942,-1000.0,0.00014,2]
[406280005,1771685438951,-1000.0,0.00014,2]
[406280006,1771685438961,-500.0,0.00014,2]
[406280007,1771685438971,-1000.0,0.00014,2]
[406280008,1771685438981,-223.41385163,0.00014,2]
[406280009,1771685438991,-500.0,0.00014,2]
[406280010,1771685439004,-168.77295823,0.00014,2]
[406280011,1771685439014,-500.0,0.00014,2]
[406280012,1771685439024,-500.0,0.00014,2]
[406280013,1771685439034,-1000.0,0.00014,2]
[406280014,1771685439044,-500.0,0.00014,2]
[406280015,1771685439054,-202.8154755,0.00014,2]
[406280016,1771685439064,-898.50753316,0.00014,2]
[406280017,1771685439074,-500.0,0.00014,2]
[406280018,1771685439085,-467.59818242,0.00014,2]
[406280019,1771685439095,-500.0,0.00014,2]
[406280020,1771685439104,-1000.0,0.00014,2]
[406280021,1771685439115,-187.50631963,0.00014,2]
[406280022,1771685439124,-1000.0,0.00014,2]
[406280023,1771685439134,-500.0,0.00014,2]
[406280024,1771685439144,-500.0,0.00014,2]
[406280025,1771685439154,-840.1639176,0.00014,2]
[406280026,1771685439163,-1000.0,0.00014,2]
[406280027,1771685439173,-500.0,0.00014,2]
[406280028,1771685439183,-500.0,0.00014,2]
[406280029,1771685439193,-1000.0,0.00014,2]
[406280030,1771685439203,-500.0,0.00014,2]
[406280031,1771685439213,-500.0,0.00014,2]
[406280032,1771685439223,-500.0,0.00014,2]
[406280033,1771685439233,-500.0,0.00014,2]
[406280034,1771685439242,-500.0,0.00014,2]
[406280035,1771685439252,-500.0,0.00014,2]
[406280036,1771685439263,-500.0,0.00014,2]
[406280037,1771685439272,-500.0,0.00014,2]
[406280038,1771685439282,-500.0,0.00014,2]
[406280039,1771685439291,-500.0,0.00014,2]
[406280040,1771685439302,-870.290484,0.00014,2]
[406280041,1771685439312,-500.0,0.00014,2]
[406280042,1771685439323,-500.0,0.00014,2]
[406280043,1771685439333,-500.0,0.00014,2]
[406280044,1771685439343,-500.0,0.00014,2]
[406280045,1771685439353,-500.0,0.00014,2]
[406280046,1771685439363,-500.0,0.00014,2]
[406280047,1771685439373,-500.0,0.00014,2]
[406280048,1771685439383,-500.0,0.00014,2]
[406280049,1771685439393,-500.0,0.00014,2]
[406280050,1771685439403,-500.0,0.00014,2]
[406280051,1771685439413,-500.0,0.00014,2]
[406280052,1771685439423,-500.0,0.00014,2]
[406280053,1771685439433,-500.0,0.00014,2]
[406280054,1771685439443,-500.0,0.00014,2]
[406280055,1771685439452,-500.0,0.00014101,5]
[406280056,1771685439462,-265.89,0.00014274,2]
[406280057,1771685439471,-897.8096617,0.00014404,2]
[406280058,1771685439481,-31860.77102172,0.00014404,2]
[406280060,1771685439492,-330.52714209,0.0001445,2]
[406280061,1771685439502,-9999.99,0.00014504,2]
[406280062,1771685439512,-2196.66,0.00014504,2]
[406280063,1771685439522,-5301.71,0.00014504,2]
[406280064,1771685439532,-150.99,0.00014504,2]
[406280065,1771685439543,-299.99,0.00014504,2]
[406280066,1771685439553,-200774.85,0.00014504,2]
[406280067,1771685439562,-1318.17,0.00014504,2]
[406280068,1771685439572,-9999.99,0.00014504,2]
[406280069,1771685439582,-4999.99,0.00014504,2]
[406280070,1771685439592,-150.99,0.00014504,2]
[406280071,1771685439602,-999.99,0.00014504,2]
[406280072,1771685439612,-9999.99,0.00014504,2]
[406280073,1771685439622,-9999.99,0.00014504,2]
[406280074,1771685439631,-5403.05,0.00014504,2]
[406280075,1771685439641,-265.89,0.00014548,2]
[406280076,1771685439651,-169.71,0.00014551,2]
[406280077,1771685439661,-245.83122939,0.00014636,2]
[406280078,1771685439671,-255.0,0.00014744,2]
[406280079,1771685439681,-1680.0,0.0001479,2]
[406280080,1771685439693,-152.16,0.00014793,2]
[406280081,1771685439704,-265.89,0.00014822,2]
[406280082,1771685439714,-420.0,0.00014827,2]
[406280083,1771685439724,-9300.0,0.000149,5]
[406280084,1771685439736,-250.0,0.00015,2]
[406280085,1771685439748,-265.9,0.00015096,2]
[406280086,1771685439768,-488.66878926,0.00015173,2]
[406280087,1771685439779,-500.0,0.00015173,2]
[406280088,1771685439789,-500.0,0.00015173,2]
[406280089,1771685439800,-501.38955269,0.00015173,2]
[406280090,1771685439810,-500.13729869,0.00015173,2]
[406280091,1771685439821,-500.0,0.00015173,2]
[406280092,1771685439834,-250.0,0.00015284,2]
[406280093,1771685439844,-359.0,0.00015289,2]
[406280094,1771685439855,-887.42,0.00015297,2]
[406280095,1771685439866,-5438.65,0.00015396,2]
[406280096,1771685439876,-851.0,0.00015397,2]
[406280097,1771685439886,-4320.6,0.00015471,2]
[406280098,1771685439896,-198.09668436,0.000156,2]
[406280099,1771685439908,-349.0,0.00015672,2]
[406280100,1771685439918,-234.07,0.00015718,2]
[406280101,1771685439930,-1000.0,0.00015721,2]
[406280102,1771685439941,-350.90980006,0.00015721,2]
[406280103,1771685439951,-579.65,0.00015729,2]
[406280104,1771685439961,-178.80221492,0.000158,2]
[406280105,1771685439972,-1000.0,0.00015814,2]
[406280106,1771685439981,-1000.0,0.00015814,2]
[406280107,1771685439991,-1000.0,0.00015814,2]
[406280108,1771685440001,-1000.0,0.00015814,2]
[406280109,1771685440011,-152.16,0.00015849,2]
[406280110,1771685440021,-1000.0,0.0001585,2]
[406280111,1771685440031,-169.71,0.00015874,2]
[406280112,1771685440041,-433.0,0.00015957,2]
[406280113,1771685440051,-519.0,0.00016,2]
[406280114,1771685440061,-587.0,0.00016251,2]
[406280115,1771685440070,-1500.0,0.00016268,2]
[406280116,1771685440080,-2351.0,0.00016269,2]
[406280117,1771685440090,-155.0,0.00016592,2]
[406280118,1771685440100,-166.66,0.00016711,2]
[406280119,1771685440110,-167.27,0.00016712,2]
[406280120,1771685440120,-152.16,0.00016906,2]
[406280121,1771685440130,-300.0,0.00017,2]
[406280122,1771685440140,-169.71,0.00017197,2]
[406280123,1771685440150,-166.66,0.00017263,2]
[406280125,1771685440160,-736.0,0.00017265,2]
[406280128,1771685440170,-29612.74167538,0.00017352,2]
[406280130,1771685440179,-694.0,0.00017404,2]
[406280131,1771685440189,-694.0,0.00017489,2]
[406280133,1771685440199,-694.0,0.00017511,2]
[406280136,1771685440209,-694.0,0.00017552,2]
[406280138,1771685440219,-694.0,0.00017685,2]
[406280140,1771685440228,-694.0,0.00017698,2]
[406280142,1771685440238,-694.0,0.0001773,2]
[406280144,1771685440248,-694.0,0.00017787,2]
[406280146,1771685440258,-31860.77102163,0.000178,2]
[406280148,1771685440267,-734.62820485,0.00017808,2]
[406280150,1771685440277,-734.62820485,0.00017808,2]
[406280152,1771685440287,-734.62820485,0.00017808,2]
[406280154,1771685440296,-734.62820485,0.00017808,2]
[406280156,1771685440306,-734.62820485,0.00017808,2]
[406280158,1771685440315,-734.62820485,0.00017808,2]
[406280160,1771685440324,-734.62820485,0.00017808,2]
[406280162,1771685440334,-734.62820485,0.00017808,2]
[406280164,1771685440344,-734.62820485,0.00017808,2]
[406280166,1771685440353,-734.62820485,0.00017808,2]
[406280168,1771685440363,-734.62820485,0.00017808,2]
[406280170,1771685440372,-734.62820485,0.00017808,2]
[406280171,1771685440382,-734.62820485,0.00017808,2]
[406280172,1771685440392,-771.35961508,0.00017808,2]
[406280173,1771685440402,-771.35961508,0.00017808,2]
[406280174,1771685440412,-771.35961508,0.00017808,2]
[406280175,1771685440422,-771.35961508,0.00017808,2]
[406280176,1771685440432,-771.35961508,0.00017808,2]
[406280177,1771685440441,-771.35961508,0.00017808,2]
[406280178,1771685440451,-771.35961508,0.00017808,2]
[406280179,1771685440460,-771.35961508,0.00017808,2]
[406280180,1771685440470,-771.35961508,0.00017808,2]
[406280181,1771685440480,-1342.16573022,0.00017808,2]
[406280182,1771685440489,-800.0,0.00017808,2]
[406280183,1771685440499,-823.0,0.00017813,2]
[406280184,1771685440512,-166.66,0.00017814,2]
[406280185,1771685440522,-1000.0,0.00017831,2]
[406280186,1771685440532,-694.0,0.00017851,2]
[406280187,1771685440541,-3292.0,0.00017896,2]
[406280188,1771685440551,-152.16,0.00017962,2]
[406280189,1771685440560,-694.0,0.00017964,2]
[406280190,1771685440570,-1343.9005063,0.0001797,2]
[406280191,1771685440580,-150.0,0.0001799,2]
[406280192,1771685440590,-200.0,0.00018128,2]
[406280193,1771685440600,-694.0,0.00018234,2]
[406280194,1771685440611,-168.75,0.000183,2]
[406280195,1771685440621,-694.0,0.00018302,2]
[406280196,1771685440631,-694.0,0.00018322,2]
[406280197,1771685440640,-694.0,0.00018325,2]
[406280198,1771685440650,-694.0,0.00018358,2]
[406280199,1771685440660,-694.0,0.00018359,2]
[406280200,1771685440670,-166.66,0.00018366,2]
[406280201,1771685440680,-694.0,0.00018413,2]
[406280202,1771685440692,-169.71,0.0001852,2]
[406280203,1771685440702,-174.61919141,0.00018525,2]
[406280204,1771685440712,-693.3919763,0.00018525,2]
[406280205,1771685440722,-578.20924308,0.00018525,2]
[406280206,1771685440732,-161.42931334,0.0001854,2]
[406280207,1771685440742,-162.05016959,0.0001854,2]
[406280208,1771685440753,-294.68081623,0.0001854,2]